[Event "Early-Titled-Tuesday-Blitz-April-16-2024"]
[Site "Chess.com"]
[Date "2024.04.16"]
[Round "3"]
[White "ActorXu"]
[Black "BigAl"]
[Result "0-1"]
[WhiteElo "2848"]
[BlackElo "2545"]
[TimeControl "180+1"]
[EndTime "8:29:12 PDT"]
[Termination "BigAl won on time"]

1. e4 {[%clk 0:03:00.9]} 1... c6 {[%clk 0:03:00]} 2. d4 {[%clk 0:03:00.2]} 2...
d5 {[%clk 0:03:00.6]} 3. e5 {[%clk 0:03:00.9]} 3... Bf5 {[%clk 0:03:00.5]} 4. h4
{[%clk 0:03:01.6]} 4... c5 {[%clk 0:03:00.6]} 5. dxc5 {[%clk 0:02:52.5]} 5...
Nc6 {[%clk 0:02:58.6]} 6. g4 {[%clk 0:02:49.6]} 6... Bd7 {[%clk 0:02:58.1]} 7.
Qxd5 {[%clk 0:02:14]} 7... e6 {[%clk 0:02:55.6]} 8. Qe4 {[%clk 0:02:05.4]} 8...
Bxc5 {[%clk 0:02:52.1]} 9. Nc3 {[%clk 0:02:01.9]} 9... Nd4 {[%clk 0:02:24.9]}
10. Rh3 {[%clk 0:01:31.9]} 10... Bc6 {[%clk 0:02:03.4]} 11. Qd3 {[%clk
0:01:31.5]} 11... Qb6 {[%clk 0:01:55.3]} 12. Be3 {[%clk 0:01:02.8]} 12... Qxb2
{[%clk 0:01:35.9]} 13. Rb1 {[%clk 0:01:02.3]} 13... Nxc2+ {[%clk 0:01:35.4]} 14.
Kd2 {[%clk 0:00:52.4]} 14... Qa3 {[%clk 0:00:43.3]} 15. Kxc2 {[%clk 0:00:43.8]}
15... Rd8 {[%clk 0:00:34.8]} 16. Qc4 {[%clk 0:00:41.7]} 16... Bxe3 {[%clk
0:00:34.4]} 17. Rxe3 {[%clk 0:00:40.4]} 17... Nh6 {[%clk 0:00:26.8]} 18. Nb5
{[%clk 0:00:36.2]} 18... Qe7 {[%clk 0:00:16.4]} 19. Nd6+ {[%clk 0:00:35.6]}
19... Kf8 {[%clk 0:00:17.3]} 20. Nf3 {[%clk 0:00:22.9]} 20... Bd5 {[%clk
0:00:17.4]} 21. Qb4 {[%clk 0:00:18.6]} 21... a5 {[%clk 0:00:16.9]} 22. Qf4
{[%clk 0:00:17.8]} 22... Kg8 {[%clk 0:00:13.5]} 23. Ng5 {[%clk 0:00:17.5]} 23...
Qd7 {[%clk 0:00:12.1]} 24. Bb5 {[%clk 0:00:15.7]} 24... Bc6 {[%clk 0:00:11.7]}
25. Bxc6 {[%clk 0:00:15.4]} 25... Qxc6+ {[%clk 0:00:12.6]} 26. Rc3 {[%clk
0:00:15.7]} 26... Qg2 {[%clk 0:00:10.8]} 27. Ngxf7 {[%clk 0:00:15.3]} 27... Rf8
{[%clk 0:00:10.8]} 28. Nxh6+ {[%clk 0:00:13.8]} 28... gxh6 {[%clk 0:00:11.7]}
29. Qxh6 {[%clk 0:00:09.8]} 29... Rxf2+ {[%clk 0:00:10.7]} 30. Kb3 {[%clk
0:00:08.7]} 30... Qd5+ {[%clk 0:00:10.6]} 31. Rc4 {[%clk 0:00:05.8]} 31... Qd3+
{[%clk 0:00:09.3]} 32. Ka4 {[%clk 0:00:03.5]} 32... Rxa2+ {[%clk 0:00:08.2]} 33.
Kb5 {[%clk 0:00:03.1]} 33... Qxb1+ {[%clk 0:00:08.3]} 34. Kc5 {[%clk 0:00:03.4]}
34... Qg1+ {[%clk 0:00:06.5]} 35. Rd4 {[%clk 0:00:01]} 35... Rc2+ {[%clk
0:00:06.4]} 36. Nc4 {[%clk 0:00:01.7]} 36... Rxc4+ {[%clk 0:00:02.9]} 37. Kxc4
{[%clk 0:00:02]} 37... Qc1+ {[%clk 0:00:03.8]} 38. Kb5 {[%clk 0:00:02.6]} 38...
Qxh6 {[%clk 0:00:04]} 39. Kc4 {[%clk 0:00:02.1]} 39... Qf8 {[%clk 0:00:04]} 0-1

[Event "Early-Titled-Tuesday-Blitz-April-16-2024"]
[Site "Chess.com"]
[Date "2024.04.16"]
[Round "3"]
[White "Hasangatin_Ramil"]
[Black "Zarinur"]
[Result "1/2-1/2"]
[WhiteElo "2647"]
[BlackElo "2501"]
[TimeControl "180+1"]
[EndTime "8:29:13 PDT"]
[Termination "Game drawn - insufficient material"]

1. d4 {[%clk 0:03:00.9]} 1... Nf6 {[%clk 0:02:59.9]} 2. Nc3 {[%clk 0:03:01.4]}
2... d5 {[%clk 0:02:59.8]} 3. Bg5 {[%clk 0:03:01]} 3... c6 {[%clk 0:02:56.2]} 4.
Nf3 {[%clk 0:03:01]} 4... Bf5 {[%clk 0:02:54.4]} 5. Bxf6 {[%clk 0:03:00.4]} 5...
exf6 {[%clk 0:02:54.5]} 6. e3 {[%clk 0:03:01.1]} 6... Nd7 {[%clk 0:02:54.5]} 7.
Bd3 {[%clk 0:03:01.6]} 7... Bxd3 {[%clk 0:02:54.5]} 8. Qxd3 {[%clk 0:03:02.5]}
8... Be7 {[%clk 0:02:48.7]} 9. O-O-O {[%clk 0:03:03]} 9... O-O {[%clk
0:02:46.9]} 10. e4 {[%clk 0:03:03.4]} 10... Nb6 {[%clk 0:02:44.3]} 11. Kb1
{[%clk 0:02:58.2]} 11... a5 {[%clk 0:02:37.3]} 12. Rhe1 {[%clk 0:02:49.8]} 12...
a4 {[%clk 0:02:35.8]} 13. exd5 {[%clk 0:02:49.1]} 13... cxd5 {[%clk 0:02:32.7]}
14. Qb5 {[%clk 0:02:48.5]} 14... Ra6 {[%clk 0:02:24.5]} 15. a3 {[%clk
0:02:42.3]} 15... g6 {[%clk 0:01:55.3]} 16. Rd3 {[%clk 0:02:42.3]} 16... f5
{[%clk 0:01:43]} 17. Rde3 {[%clk 0:02:42.4]} 17... Bf6 {[%clk 0:01:43.3]} 18.
Re8 {[%clk 0:02:39.1]} 18... Qd6 {[%clk 0:01:39.6]} 19. Rxf8+ {[%clk 0:02:33.2]}
19... Kxf8 {[%clk 0:01:40.5]} 20. Qc5 {[%clk 0:02:33.2]} 20... Qxc5 {[%clk
0:01:34]} 21. dxc5 {[%clk 0:02:34.1]} 21... Bxc3 {[%clk 0:01:34]} 22. bxc3
{[%clk 0:02:34]} 22... Nc4 {[%clk 0:01:23.7]} 23. Ka2 {[%clk 0:02:19.7]} 23...
Re6 {[%clk 0:00:38.7]} 24. Rxe6 {[%clk 0:02:12.6]} 24... fxe6 {[%clk 0:00:39.6]}
25. Ng5 {[%clk 0:02:12.9]} 25... Ke7 {[%clk 0:00:34.4]} 26. Nxh7 {[%clk
0:02:13.2]} 26... Nd2 {[%clk 0:00:17.1]} 27. f3 {[%clk 0:02:09]} 27... Nf1
{[%clk 0:00:16.6]} 28. Kb1 {[%clk 0:02:04.8]} 28... Nxh2 {[%clk 0:00:15.9]} 29.
Kc1 {[%clk 0:01:57.5]} 29... Nf1 {[%clk 0:00:14.9]} 30. g4 {[%clk 0:01:54.6]}
30... Ne3 {[%clk 0:00:08.8]} 31. g5 {[%clk 0:01:52.3]} 31... Nc4 {[%clk
0:00:08]} 32. Nf6 {[%clk 0:01:52.9]} 32... Nxa3 {[%clk 0:00:07.1]} 33. Ng8+
{[%clk 0:01:52.4]} 33... Kf7 {[%clk 0:00:06.7]} 34. Nf6 {[%clk 0:01:52.4]} 34...
Nb5 {[%clk 0:00:05]} 35. Nd7 {[%clk 0:01:52.5]} 35... Nxc3 {[%clk 0:00:03.8]}
36. Ne5+ {[%clk 0:01:51.8]} 36... Kg7 {[%clk 0:00:03.6]} 37. Kb2 {[%clk
0:01:52]} 37... Ne2 {[%clk 0:00:03.9]} 38. Ka3 {[%clk 0:01:50.8]} 38... Nf4
{[%clk 0:00:04.1]} 39. Kxa4 {[%clk 0:01:49.9]} 39... Nh3 {[%clk 0:00:04.7]} 40.
Kb5 {[%clk 0:01:46.5]} 40... Nxg5 {[%clk 0:00:05.1]} 41. Kb6 {[%clk 0:01:47]}
41... Kf6 {[%clk 0:00:05.6]} 42. f4 {[%clk 0:01:26.9]} 42... Ne4 {[%clk
0:00:05.9]} 43. Nd3 {[%clk 0:01:27]} 43... e5 {[%clk 0:00:03.2]} 44. fxe5+
{[%clk 0:01:22.8]} 44... Ke6 {[%clk 0:00:03.5]} 45. Kxb7 {[%clk 0:01:23.4]}
45... Nxc5+ {[%clk 0:00:02.9]} 46. Nxc5+ {[%clk 0:01:24.3]} 46... Kxe5 {[%clk
0:00:03.4]} 47. Kc6 {[%clk 0:01:20]} 47... Kd4 {[%clk 0:00:02.6]} 48. Ne6+
{[%clk 0:01:11.1]} 48... Kc3 {[%clk 0:00:02.7]} 49. Kxd5 {[%clk 0:01:11.4]}
49... Kxc2 {[%clk 0:00:03.3]} 50. Ke5 {[%clk 0:01:12]} 50... Kd3 {[%clk
0:00:02.7]} 51. Kf4 {[%clk 0:01:12.9]} 51... Ke2 {[%clk 0:00:03.1]} 52. Nf8
{[%clk 0:01:13.8]} 52... Kd3 {[%clk 0:00:03.3]} 53. Nd7 {[%clk 0:01:14.7]} 53...
Kc4 {[%clk 0:00:04]} 54. Ne5+ {[%clk 0:01:15.3]} 54... Kd5 {[%clk 0:00:04.1]}
55. Nf3 {[%clk 0:01:16.2]} 55... Kc5 {[%clk 0:00:04.8]} 56. Ke5 {[%clk
0:01:16.5]} 56... Kb5 {[%clk 0:00:05.5]} 57. Nd4+ {[%clk 0:01:16.9]} 57... Kc4
{[%clk 0:00:05.7]} 58. Ne6 {[%clk 0:01:17.4]} 58... Kd3 {[%clk 0:00:05.9]} 59.
Kf4 {[%clk 0:01:17.8]} 59... Ke2 {[%clk 0:00:06]} 60. Ng5 {[%clk 0:01:18.1]}
60... Kf2 {[%clk 0:00:06.5]} 61. Nh3+ {[%clk 0:01:17.8]} 61... Kg2 {[%clk
0:00:07]} 62. Ng5 {[%clk 0:01:18.1]} 62... Kf2 {[%clk 0:00:07.6]} 63. Ne6 {[%clk
0:01:18.7]} 63... Kg2 {[%clk 0:00:08]} 64. Nd4 {[%clk 0:01:18.8]} 64... Kf2
{[%clk 0:00:07.2]} 65. Nf3 {[%clk 0:01:19.1]} 65... Ke2 {[%clk 0:00:07.4]} 66.
Nh4 {[%clk 0:01:18.7]} 66... Kf2 {[%clk 0:00:07.6]} 67. Nxg6 {[%clk 0:01:17.9]}
67... Ke2 {[%clk 0:00:07.9]} 68. Ne5 {[%clk 0:01:18.5]} 68... Kf2 {[%clk
0:00:08.2]} 69. Nf3 {[%clk 0:01:19.4]} 69... Ke2 {[%clk 0:00:08.6]} 70. Ng1+
{[%clk 0:01:19.3]} 70... Kf2 {[%clk 0:00:08.9]} 71. Nh3+ {[%clk 0:01:19.8]}
71... Ke2 {[%clk 0:00:09.5]} 72. Ng5 {[%clk 0:01:20]} 72... Kf2 {[%clk 0:00:10]}
73. Ne4+ {[%clk 0:01:20.9]} 73... fxe4 {[%clk 0:00:09.7]} 74. Kxe4 {[%clk
0:01:21.8]} 1/2-1/2

[Event "Early-Titled-Tuesday-Blitz-April-16-2024"]
[Site "Chess.com"]
[Date "2024.04.16"]
[Round "3"]
[White "ContrVersia"]
[Black "AlphaGoosee"]
[Result "1-0"]
[WhiteElo "2899"]
[BlackElo "2587"]
[TimeControl "180+1"]
[EndTime "8:29:15 PDT"]
[Termination "ContrVersia won by checkmate"]

1. Nf3 {[%clk 0:03:00.9]} 1... d5 {[%clk 0:03:00.2]} 2. c4 {[%clk 0:03:00.9]}
2... dxc4 {[%clk 0:03:01.1]} 3. Na3 {[%clk 0:02:59.7]} 3... a6 {[%clk
0:02:57.1]} 4. Nxc4 {[%clk 0:02:56.6]} 4... b5 {[%clk 0:02:57.3]} 5. Nce5 {[%clk
0:02:56.7]} 5... f6 {[%clk 0:02:57.6]} 6. Nd3 {[%clk 0:02:46.4]} 6... e5 {[%clk
0:02:57.8]} 7. e4 {[%clk 0:02:06]} 7... c5 {[%clk 0:02:33.8]} 8. b3 {[%clk
0:01:55.4]} 8... Nc6 {[%clk 0:02:26.9]} 9. Ba3 {[%clk 0:01:50.9]} 9... b4 {[%clk
0:02:24.7]} 10. Bb2 {[%clk 0:01:49.5]} 10... Bg4 {[%clk 0:02:01.7]} 11. Rc1
{[%clk 0:01:47.1]} 11... Nd4 {[%clk 0:01:55.6]} 12. Nxc5 {[%clk 0:01:41.6]}
12... Qa5 {[%clk 0:01:28.4]} 13. Bxd4 {[%clk 0:01:29.7]} 13... exd4 {[%clk
0:01:28.5]} 14. Na4 {[%clk 0:01:29.6]} 14... Bd6 {[%clk 0:01:20]} 15. Bc4 {[%clk
0:01:26.8]} 15... Ne7 {[%clk 0:01:17.6]} 16. h3 {[%clk 0:01:26.8]} 16... Qh5
{[%clk 0:01:17.6]} 17. Be2 {[%clk 0:01:17.4]} 17... d3 {[%clk 0:01:13.3]} 18.
Bxd3 {[%clk 0:01:16.3]} 18... O-O {[%clk 0:01:12.9]} 19. Be2 {[%clk 0:01:15.1]}
19... Ng6 {[%clk 0:01:12.9]} 20. Nd4 {[%clk 0:01:07.8]} 20... Bxe2 {[%clk
0:01:08.3]} 21. Qxe2 {[%clk 0:01:08.7]} 21... Qe5 {[%clk 0:01:04.3]} 22. Nf3
{[%clk 0:01:01.6]} 22... Qh5 {[%clk 0:01:00.7]} 23. Nd4 {[%clk 0:00:40.3]} 23...
Qe5 {[%clk 0:00:59.7]} 24. Nc6 {[%clk 0:00:40.7]} 24... Qe8 {[%clk 0:00:55.4]}
25. Nb6 {[%clk 0:00:40.3]} 25... Nf4 {[%clk 0:00:53.1]} 26. Qc4+ {[%clk
0:00:40.5]} 26... Kh8 {[%clk 0:00:53.3]} 27. g3 {[%clk 0:00:40.8]} 27... Qh5
{[%clk 0:00:40.9]} 28. Nxa8 {[%clk 0:00:31.7]} 28... Qf3 {[%clk 0:00:36.9]} 29.
gxf4 {[%clk 0:00:29]} 29... Qxh1+ {[%clk 0:00:36.2]} 30. Ke2 {[%clk 0:00:28.5]}
30... Qxh3 {[%clk 0:00:34.1]} 31. Nb6 {[%clk 0:00:25.8]} 31... Bxf4 {[%clk
0:00:31.7]} 32. Nd5 {[%clk 0:00:22.8]} 32... Qh5+ {[%clk 0:00:27.5]} 33. Kd3
{[%clk 0:00:22.5]} 33... Qf3+ {[%clk 0:00:22.1]} 34. Kc2 {[%clk 0:00:22.4]}
34... Bd6 {[%clk 0:00:19.7]} 35. Kb1 {[%clk 0:00:17.7]} 35... Qxf2 {[%clk
0:00:19.5]} 36. Qd3 {[%clk 0:00:17.8]} 36... a5 {[%clk 0:00:15.6]} 37. Nxa5
{[%clk 0:00:16.8]} 37... Be5 {[%clk 0:00:14.7]} 38. Nc4 {[%clk 0:00:16.5]} 38...
Bd4 {[%clk 0:00:14.3]} 39. Rf1 {[%clk 0:00:15.1]} 39... Qg2 {[%clk 0:00:14.5]}
40. Nf4 {[%clk 0:00:15.2]} 40... Qh2 {[%clk 0:00:07.4]} 41. Qxd4 {[%clk
0:00:15.2]} 41... Ra8 {[%clk 0:00:08.1]} 42. Qd5 {[%clk 0:00:13.1]} 42... Rg8
{[%clk 0:00:07.6]} 43. Nd6 {[%clk 0:00:12.9]} 43... h6 {[%clk 0:00:06.1]} 44.
Nf7+ {[%clk 0:00:12.4]} 44... Kh7 {[%clk 0:00:06.7]} 45. Qf5+ {[%clk 0:00:12.1]}
45... g6 {[%clk 0:00:07]} 46. Qxf6 {[%clk 0:00:12.4]} 46... Rg7 {[%clk
0:00:06.8]} 47. Ne6 {[%clk 0:00:10.8]} 47... Qe2 {[%clk 0:00:06.3]} 48. Qxg7#
{[%clk 0:00:10.6]} 1-0

[Event "Early-Titled-Tuesday-Blitz-April-16-2024"]
[Site "Chess.com"]
[Date "2024.04.16"]
[Round "3"]
[White "BeautiFullMindChess"]
[Black "GrotBchess"]
[Result "0-1"]
[WhiteElo "2250"]
[BlackElo "2458"]
[TimeControl "180+1"]
[EndTime "8:29:18 PDT"]
[Termination "GrotBchess won by resignation"]

1. e4 {[%clk 0:03:00.9]} 1... c5 {[%clk 0:02:58.2]} 2. Nf3 {[%clk 0:02:59.5]}
2... Nc6 {[%clk 0:02:57.2]} 3. Bb5 {[%clk 0:02:57.1]} 3... g6 {[%clk 0:02:54.7]}
4. Nc3 {[%clk 0:02:55.1]} 4... Bg7 {[%clk 0:02:53.5]} 5. O-O {[%clk 0:02:52.1]}
5... Nd4 {[%clk 0:02:53.2]} 6. Nxd4 {[%clk 0:02:50.2]} 6... cxd4 {[%clk
0:02:53.1]} 7. Ne2 {[%clk 0:02:51.1]} 7... e5 {[%clk 0:02:52.4]} 8. f4 {[%clk
0:02:49.9]} 8... a6 {[%clk 0:02:52.2]} 9. Ba4 {[%clk 0:02:49.4]} 9... Ne7 {[%clk
0:02:41.4]} 10. fxe5 {[%clk 0:02:32.1]} 10... O-O {[%clk 0:02:38]} 11. Nxd4
{[%clk 0:02:30.1]} 11... Qb6 {[%clk 0:02:37]} 12. c3 {[%clk 0:02:29.2]} 12...
Bxe5 {[%clk 0:02:36.5]} 13. Kh1 {[%clk 0:02:26.9]} 13... Bxd4 {[%clk 0:02:32.9]}
14. cxd4 {[%clk 0:02:27.8]} 14... Qxd4 {[%clk 0:02:32.9]} 15. d3 {[%clk
0:02:22.8]} 15... Qg7 {[%clk 0:02:28.5]} 16. Bb3 {[%clk 0:02:19]} 16... h6
{[%clk 0:02:24]} 17. Bd2 {[%clk 0:02:12.6]} 17... d5 {[%clk 0:02:17.2]} 18. exd5
{[%clk 0:02:08.8]} 18... Bf5 {[%clk 0:02:07.2]} 19. Bc3 {[%clk 0:01:47.5]} 19...
Qh7 {[%clk 0:01:58.5]} 20. g4 {[%clk 0:01:45.5]} 20... Bd7 {[%clk 0:01:52.7]}
21. Rf6 {[%clk 0:01:27.6]} 21... Rad8 {[%clk 0:01:44.1]} 22. Qf3 {[%clk
0:01:20.9]} 22... Be8 {[%clk 0:01:20.2]} 23. Re1 {[%clk 0:01:12.8]} 23... Nc8
{[%clk 0:01:17.3]} 24. Re7 {[%clk 0:00:58.6]} 24... Nxe7 {[%clk 0:01:15.5]} 25.
Qe4 {[%clk 0:00:50.6]} 25... Nc8 {[%clk 0:01:08.6]} 26. Qe5 {[%clk 0:00:46.5]}
26... Rd7 {[%clk 0:00:37.7]} 27. d6 {[%clk 0:00:46.4]} 27... Rxd6 {[%clk
0:00:26.4]} 28. Rxd6 {[%clk 0:00:41.4]} 28... Nxd6 {[%clk 0:00:26.2]} 29. Qxd6
{[%clk 0:00:42.3]} 29... Bc6+ {[%clk 0:00:25.5]} 30. Kg1 {[%clk 0:00:41]} 30...
h5 {[%clk 0:00:25]} 31. g5 {[%clk 0:00:37.5]} 31... h4 {[%clk 0:00:23]} 32. Kf2
{[%clk 0:00:12.7]} 32... Re8 {[%clk 0:00:20.4]} 33. Qf6 {[%clk 0:00:10.7]} 33...
h3 {[%clk 0:00:19]} 34. Kg3 {[%clk 0:00:07.7]} 34... Rf8 {[%clk 0:00:17.8]} 35.
Kf2 {[%clk 0:00:07.2]} 35... Qh4+ {[%clk 0:00:16.9]} 36. Ke3 {[%clk 0:00:06.7]}
36... Qh7 {[%clk 0:00:16]} 37. Kd2 {[%clk 0:00:06.4]} 37... Bd7 {[%clk
0:00:12.6]} 38. Kc2 {[%clk 0:00:06.3]} 38... Be6 {[%clk 0:00:09.6]} 39. Bxe6
{[%clk 0:00:05.7]} 39... fxe6 {[%clk 0:00:09.8]} 40. Qxe6+ {[%clk 0:00:05.9]}
40... Qf7 {[%clk 0:00:10]} 41. Qe5 {[%clk 0:00:05.5]} 41... Kh7 {[%clk
0:00:08.2]} 42. Qd4 {[%clk 0:00:04.8]} 42... Qf2+ {[%clk 0:00:07.8]} 43. Qxf2
{[%clk 0:00:04.4]} 43... Rxf2+ {[%clk 0:00:08.7]} 44. Kb3 {[%clk 0:00:05.1]}
44... Rxh2 {[%clk 0:00:08.9]} 45. Bf6 {[%clk 0:00:03.6]} 45... Rg2 {[%clk
0:00:09.1]} 46. Be5 {[%clk 0:00:04.3]} 46... h2 {[%clk 0:00:09.3]} 47. Bxh2
{[%clk 0:00:05]} 47... Rxh2 {[%clk 0:00:09.9]} 0-1

[Event "Early-Titled-Tuesday-Blitz-April-16-2024"]
[Site "Chess.com"]
[Date "2024.04.16"]
[Round "3"]
[White "JoliyRoger"]
[Black "Sanyura"]
[Result "0-1"]
[WhiteElo "2423"]
[BlackElo "2604"]
[TimeControl "180+1"]
[EndTime "8:29:19 PDT"]
[Termination "Sanyura won by checkmate"]

1. d4 {[%clk 0:02:52.7]} 1... Nf6 {[%clk 0:02:02.2]} 2. c4 {[%clk 0:02:50.8]}
2... g6 {[%clk 0:02:02.2]} 3. Nc3 {[%clk 0:02:51.3]} 3... Bg7 {[%clk 0:02:02.7]}
4. e4 {[%clk 0:02:52]} 4... d6 {[%clk 0:02:03.2]} 5. Nf3 {[%clk 0:02:52.6]} 5...
O-O {[%clk 0:02:03.8]} 6. h3 {[%clk 0:02:53.2]} 6... Nc6 {[%clk 0:02:00.3]} 7.
Bg5 {[%clk 0:02:53.4]} 7... h6 {[%clk 0:01:57.1]} 8. Be3 {[%clk 0:02:54]} 8...
e5 {[%clk 0:01:54.5]} 9. d5 {[%clk 0:02:54.3]} 9... Ne7 {[%clk 0:01:55.2]} 10.
g4 {[%clk 0:02:54.8]} 10... Ne8 {[%clk 0:01:54.6]} 11. Rg1 {[%clk 0:02:49]}
11... Kh7 {[%clk 0:01:53.4]} 12. Bd3 {[%clk 0:02:34]} 12... c6 {[%clk
0:01:26.8]} 13. Qc2 {[%clk 0:02:19.2]} 13... a6 {[%clk 0:01:22]} 14. a3 {[%clk
0:02:14.9]} 14... b5 {[%clk 0:01:22]} 15. dxc6 {[%clk 0:02:00.9]} 15... Nxc6
{[%clk 0:01:17.3]} 16. cxb5 {[%clk 0:01:56.1]} 16... axb5 {[%clk 0:01:16.4]} 17.
Bxb5 {[%clk 0:01:56.6]} 17... Nd4 {[%clk 0:01:15.7]} 18. Qd1 {[%clk 0:01:40.7]}
18... Nxb5 {[%clk 0:01:14.3]} 19. Nxb5 {[%clk 0:01:40.4]} 19... Bb7 {[%clk
0:01:15.2]} 20. Nc3 {[%clk 0:01:34.5]} 20... Nf6 {[%clk 0:01:14.3]} 21. g5
{[%clk 0:00:29.5]} 21... Nxe4 {[%clk 0:01:07.5]} 22. Nxe4 {[%clk 0:00:16.7]}
22... Bxe4 {[%clk 0:01:06.2]} 23. gxh6 {[%clk 0:00:16.9]} 23... Bxf3 {[%clk
0:00:57.9]} 24. Qxf3 {[%clk 0:00:15.8]} 24... Bxh6 {[%clk 0:00:58.4]} 25. h4
{[%clk 0:00:07.8]} 25... Qa5+ {[%clk 0:00:53.8]} 26. Kf1 {[%clk 0:00:05.1]}
26... Qb5+ {[%clk 0:00:47.2]} 27. Qe2 {[%clk 0:00:05.6]} 27... Qc6 {[%clk
0:00:31.6]} 28. h5 {[%clk 0:00:05.6]} 28... Bxe3 {[%clk 0:00:29.9]} 29. hxg6+
{[%clk 0:00:05.6]} 29... fxg6 {[%clk 0:00:29.9]} 30. Qxe3 {[%clk 0:00:05.9]}
30... Rab8 {[%clk 0:00:27.6]} 31. Rc1 {[%clk 0:00:04.8]} 31... Qa6+ {[%clk
0:00:22.3]} 32. Kg2 {[%clk 0:00:05.2]} 32... Qb7+ {[%clk 0:00:19.2]} 33. Kg3
{[%clk 0:00:05.7]} 33... Kg7 {[%clk 0:00:17.5]} 34. Rh1 {[%clk 0:00:06]} 34...
Rf4 {[%clk 0:00:18.1]} 35. Qc3 {[%clk 0:00:04.6]} 35... Qe4 {[%clk 0:00:03]} 36.
Qc7+ {[%clk 0:00:04.3]} 36... Kf6 {[%clk 0:00:03.4]} 37. Qxd6+ {[%clk
0:00:03.5]} 37... Kg5 {[%clk 0:00:03.9]} 38. Qe7+ {[%clk 0:00:03.7]} 38... Rf6
{[%clk 0:00:04.3]} 39. Rc3 {[%clk 0:00:02.3]} 39... Qf4+ {[%clk 0:00:03.3]} 40.
Kg2 {[%clk 0:00:02.3]} 40... Qxf2+ {[%clk 0:00:03.9]} 41. Kh3 {[%clk 0:00:02.9]}
41... Qh4+ {[%clk 0:00:03.5]} 42. Kg2 {[%clk 0:00:03]} 42... Rxb2+ {[%clk
0:00:04.2]} 43. Kg1 {[%clk 0:00:02.6]} 43... Qf2# {[%clk 0:00:04.6]} 0-1

[Event "Early-Titled-Tuesday-Blitz-April-16-2024"]
[Site "Chess.com"]
[Date "2024.04.16"]
[Round "3"]
[White "Fjal"]
[Black "YouJustFoundYourGodfather"]
[Result "0-1"]
[WhiteElo "2305"]
[BlackElo "2568"]
[TimeControl "180+1"]
[EndTime "8:29:19 PDT"]
[Termination "YouJustFoundYourGodfather won on time"]

1. Nf3 {[%clk 0:03:00.9]} 1... Nf6 {[%clk 0:02:38.6]} 2. g3 {[%clk 0:02:59.1]}
2... d5 {[%clk 0:02:37.6]} 3. Bg2 {[%clk 0:02:59.6]} 3... e6 {[%clk 0:02:37.1]}
4. O-O {[%clk 0:03:00]} 4... Be7 {[%clk 0:02:37.2]} 5. d3 {[%clk 0:03:00.9]}
5... O-O {[%clk 0:02:37.6]} 6. Nbd2 {[%clk 0:03:01.6]} 6... a5 {[%clk
0:02:35.8]} 7. e4 {[%clk 0:03:02.2]} 7... a4 {[%clk 0:02:35.7]} 8. a3 {[%clk
0:03:02.1]} 8... Nc6 {[%clk 0:02:33.7]} 9. e5 {[%clk 0:03:02.1]} 9... Nd7 {[%clk
0:02:33.1]} 10. Re1 {[%clk 0:03:03]} 10... b5 {[%clk 0:02:28.5]} 11. Nf1 {[%clk
0:03:03.4]} 11... Bb7 {[%clk 0:02:24.6]} 12. h4 {[%clk 0:03:01.1]} 12... b4
{[%clk 0:02:22.5]} 13. N1h2 {[%clk 0:02:57.5]} 13... bxa3 {[%clk 0:02:22.3]} 14.
Rxa3 {[%clk 0:02:52.6]} 14... Bxa3 {[%clk 0:02:21.6]} 15. bxa3 {[%clk
0:02:53.5]} 15... Qe7 {[%clk 0:02:17.1]} 16. h5 {[%clk 0:02:53.4]} 16... f5
{[%clk 0:02:14.4]} 17. exf6 {[%clk 0:02:46]} 17... Nxf6 {[%clk 0:02:14.1]} 18.
h6 {[%clk 0:02:44.7]} 18... g6 {[%clk 0:02:14.2]} 19. Bb2 {[%clk 0:02:14.5]}
19... Rae8 {[%clk 0:01:56.9]} 20. Qa1 {[%clk 0:01:52.4]} 20... e5 {[%clk
0:01:36.2]} 21. Nxe5 {[%clk 0:01:44.3]} 21... Nxe5 {[%clk 0:01:35.1]} 22. Rxe5
{[%clk 0:01:40.4]} 22... Qd7 {[%clk 0:01:28]} 23. Nf3 {[%clk 0:01:30.7]} 23...
d4 {[%clk 0:01:21.2]} 24. Bxd4 {[%clk 0:01:16.9]} 24... Ng4 {[%clk 0:01:12.8]}
25. Qa2+ {[%clk 0:01:10]} 25... Rf7 {[%clk 0:01:00.5]} 26. Rxe8+ {[%clk
0:01:09.7]} 26... Qxe8 {[%clk 0:01:01.1]} 27. Ng5 {[%clk 0:01:04.6]} 27... Qe1+
{[%clk 0:00:36.5]} 28. Bf1 {[%clk 0:01:02]} 28... Nxh6 {[%clk 0:00:36]} 29. Nxf7
{[%clk 0:00:38.4]} 29... Nxf7 {[%clk 0:00:36.9]} 30. Qb2 {[%clk 0:00:38.7]}
30... Nd6 {[%clk 0:00:37]} 31. Be5 {[%clk 0:00:20.2]} 31... Bc6 {[%clk 0:00:28]}
32. Qb8+ {[%clk 0:00:19.5]} 32... Ne8 {[%clk 0:00:28.2]} 33. Bxc7 {[%clk
0:00:14.1]} 33... Qe7 {[%clk 0:00:24.4]} 34. Be5 {[%clk 0:00:12.1]} 34... Qxa3
{[%clk 0:00:24.3]} 35. Bb2 {[%clk 0:00:06.7]} 35... Qc5 {[%clk 0:00:20]} 36. Qf4
{[%clk 0:00:05.9]} 36... a3 {[%clk 0:00:17.3]} 37. Ba1 {[%clk 0:00:05.4]} 37...
a2 {[%clk 0:00:12.2]} 38. Bh3 {[%clk 0:00:03.5]} 38... Qd5 {[%clk 0:00:10]} 39.
f3 {[%clk 0:00:02.7]} 39... h5 {[%clk 0:00:02.6]} 40. Qh6 {[%clk 0:00:01.6]}
40... Qc5+ {[%clk 0:00:03.3]} 41. Kh2 {[%clk 0:00:01.6]} 41... Qd6 {[%clk
0:00:03.9]} 42. Qh8+ {[%clk 0:00:01.8]} 42... Kf7 {[%clk 0:00:04.8]} 0-1